Cogmind - Beta 10.2 @@@ ROGUE MODE // 2020.12.30 @ 19:02:13 Player: Destravous Result: Destroyed by G-34 Mercenary with Small Laser Performance ------------- Evolutions (1) 500 Regions Visited (3) 600 Robots Destroyed (6) 30 Value Destroyed (78) 78 Prototype IDs (0) 0 Alien Tech Used (0) 0 Bonus (0) 0 TOTAL SCORE: 1208 Bonus ------- None Cogmind --------- Core Integrity 0/400 Matter 284/300 Energy 78/100 System Corruption 0% Temperature Cool (6) Movement Core (50) Location -9/Storage Parts ------- > --- POWER (1) -------- (None) > --- PROPULSION (2) --- (None) > --- UTILITY (4) ------ Visual Processing Unit > --- WEAPON (2) ------- (None) > --- INVENTORY (4) ---- Improved Terrain Scanner Terrain Scan Processor Peak State ------------ > --- POWER ------------ Light Ion Engine > --- PROPULSION ------- Hover Unit Improved Hover Unit > --- UTILITY ---------- Small Storage Unit Visual Processing Unit Improved Sensor Array ECM Suite > --- WEAPON ----------- Light Assault Rifle Datajack > --- INVENTORY -------- Hover Unit Improved Terrain Scanner Terrain Scan Processor Hardened Light Armor Plating Small Laser Maul [Rating: 13] Favorites ----------- Power Light Ion Engine Engine Light Ion Engine Propulsion Hover Unit Leg Aluminum Leg Hover Unit Hover Unit Utility Small Storage Unit Device ECM Suite Storage Small Storage Unit Processor Visual Processing Unit Protection Hardened Light Armor Plating Weapon Light Assault Rifle Energy Gun Medium Laser Ballistic Gun Light Assault Rifle Impact Weapon Maul Special Melee Weapon Datajack Build | -11 -10 -9 -9 ------- Run | Scr Mat Mat Sto Slots Evolved 2 | . . 2 . Power . | . . . . Propulsion . | . . . . Utility 2 | . . 2 . Weapon . | . . . . Parts Attached 16 | . 4 7 5 Power 2 | . 1 1 . Engine 2 | . 1 1 . Core . | . . . . Reactor . | . . . . Propulsion 6 | . 2 3 1 Treads . | . . . . Leg . | . . . . Wheel . | . . . . Hover 6 | . 2 3 1 Flight . | . . . . Utility 4 | . 1 2 1 Device 2 | . 1 1 . Storage . | . . . . Processor 1 | . . 1 . Hackware . | . . . . Protection 1 | . . . 1 Artifact . | . . . . Weapon 4 | . . 1 3 Energy Gun 1 | . . . 1 Energy Cannon . | . . . . Ballistic Gun . | . . . . Ballistic Cannon . | . . . . Launcher . | . . . . Special Weapon . | . . . . Impact Weapon 1 | . . . 1 Slashing Weapon . | . . . . Piercing Weapon . | . . . . Special Melee Weapon 2 | . . 1 1 Unidentified Prototypes . | . . . . Parts Lost 14 | . 3 1 10 Power 2 | . . 1 1 Propulsion 5 | . 2 . 3 Utility 2 | . . . 2 Weapon 5 | . 1 . 4 Highest Loss Streak 5 | . 3 4 5 Average Slot Usage (%) 71 | . 92 90 60 Engine 6 | . 14 8 3 Leg 2 | . 8 . . Hover 11 | . 15 22 8 Device 14 | . 11 15 15 Storage 10 | . 14 11 8 Processor 8 | . . 11 11 Energy Gun 4 | . 14 . 1 Ballistic Gun 6 | . 14 11 3 Impact Weapon 3 | . . . 5 Special Melee Weapon 2 | . . 11 2 Naked Turns . | . . . . Heaviest Build 13 | 12 13 11 13 Greatest Support 20 | 20 20 14 14 Greatest Overweight (x) 3 | . 3 . 3 Average Overweight (x) . | . . . . Largest Inventory Capacity 6 | 6 6 6 6 Average Capacity 5 | 6 6 6 5 Most Carried 6 | 6 6 5 6 Average Carried 4 | 6 5 3 4 Final Capacity 6 | 6 6 6 4 Final Carried 6 | 6 6 4 2 Class Distribution -------------------- 100% | Mutant Dominant Class ---------------- Mutant | -10/Materials Mutant | -9/Materials Mutant | -9/Storage Resources | -11 -10 -9 -9 ----------- Run | Scr Mat Mat Sto Matter Collected 342 | 200 50 . 92 Remotely . | . . . . Salvage Created 102 | . 61 . 41 Parts 12 | . 10 . 2 Haulers Intercepted . | . . . . Recyclers Shooed . | . . . . Parts Field Recycled . | . . . . Retrieved Matter . | . . . . Parts Self-Destructed . | . . . . Prevented . | . . . . Kills | -11 -10 -9 -9 ------- Run | Scr Mat Mat Sto Combat Hostiles Destroyed 3 | . . . 3 Melee 1 | . . . 1 Guns 1 | . . . 1 Classes Destroyed 3 | . 2 . 1 Operator 1 | . 1 . . Watcher 2 | . 2 . . Swarmer 3 | . . . 3 Best Kill Streak 2 | . 2 . 1 Combat Bots Only 1 | . . . 1 Max Kills in Single Turn 1 | . 1 . 1 Gunslinging . | . . . . Exploded . | . . . . Melee 1 | . . . 1 Uniques/NPCs Destroyed . | . . . . Combat | -11 -10 -9 -9 -------- Run | Scr Mat Mat Sto Damage Taken 1031 | . 198 90 743 Core 444 | . 44 32 368 Absorbed by Shields . | . . . . Core Remaining (%) 91 | 100 82 . . Volleys Fired 27 | . 10 . 17 Largest 2 | . 2 . 1 Hottest 70 | . 70 . 40 Shots Fired 37 | . 20 . 17 Gun 37 | . 20 . 17 Cannon . | . . . . Launcher . | . . . . Special . | . . . . Kinetic 26 | . 10 . 16 Thermal 11 | . 10 . 1 Explosive . | . . . . Electromagnetic . | . . . . Robot Hit Streak 5 | . 5 . 2 Robot Miss Streak 5 | . 5 . 3 Penetration Max . | . . . . Secondary Targets . | . . . . Shots Hit Robots 25 | . 9 . 16 Core Hits 7 | . 5 . 2 Critical Hits . | . . . . Critical Kills . | . . . . Critical Parts Destroyed . | . . . . Melee Attacks 17 | . . . 17 Impact 15 | . . . 15 Slashing . | . . . . Piercing . | . . . . Sneak Attacks . | . . . . Combat Hostiles . | . . . . Follow-up Attacks . | . . . . Damage Inflicted 358 | . 87 . 271 Guns 141 | . 87 . 54 Cannons . | . . . . Explosions . | . . . . Melee 215 | . . . 215 Ramming 2 | . . . 2 Kinetic 77 | . 23 . 54 Thermal 64 | . 64 . . Explosive . | . . . . Electromagnetic . | . . . . Impact 215 | . . . 215 Slashing . | . . . . Piercing . | . . . . Highest Corruption . | . . . . Average Corruption . | . . . . Corruption Purged . | . . . . Overload Shots . | . . . . Overflow Damage 51 | . . . 51 Projectiles . | . . . . Explosions . | . . . . Melee 51 | . . . 51 Knockbacks 2 | . . . 2 Impact 2 | . . . 2 Kinetic . | . . . . Secondary . | . . . . Self-Inflicted Damage 1 | . . . 1 Shots . | . . . . Rammed 1 | . . . 1 Targets Rammed 1 | . . . 1 Kicked . | . . . . Crushed . | . . . . Highest Temperature 112 | . 112 . 1 Average Temperature 40 | . 42 . 1 Received Heat Transfer 375 | . 108 36 231 Siege Activations . | . . . . Robots Corrupted . | . . . . Combat Hostiles . | . . . . Parts Fried . | . . . . Impact Corruptions 6 | . . . 6 Robots Melted . | . . . . Combat Hostiles . | . . . . Parts Melted . | . . . . Heat Transferred 185 | . 185 . . Parts Sabotaged . | . . . . Parts Stolen . | . . . . Parts Stripped . | . . . . Power Chain Reactions . | . . . . Missiles Intercepted . | . . . . Alert | -11 -10 -9 -9 ------- Run | Scr Mat Mat Sto Peak Influence 85 | . 49 27 85 Initial 11 | . . 7 11 Average 32 | . 23 10 39 Maximum Alert Level . | . . . . Low Security (%) 100 | 100 100 100 100 Level 1 . | . . . . Level 2 . | . . . . Level 3 . | . . . . Level 4 . | . . . . Level 5 . | . . . . High Security . | . . . . Max Security . | . . . . Squads Dispatched 5 | . 1 . 4 Investigation 1 | . . . 1 Extermination . | . . . . Reinforcement 2 | . 1 . 1 Assault . | . . . . Garrison 2 | . . . 2 Intercept . | . . . . Construction Impeded . | . . . . Haulers Reinforced . | . . . . Stealth | -11 -10 -9 -9 --------- Run | Scr Mat Mat Sto Distress Signals 2 | . 1 . 1 Communications Jammed . | . . . . Distress Signals . | . . . . Times Spotted 27 | . 8 2 17 Peak Tracking Total 9 | . 5 5 9 Tactical Retreats 2 | . . . 2 Traps | -11 -10 -9 -9 ------- Run | Scr Mat Mat Sto Traps Triggered . | . . . . Indirectly . | . . . . Trap Hack Attempts . | . . . . Triggered . | . . . . Disarmed . | . . . . Reprogrammed . | . . . . Reused . | . . . . Traps Extracted . | . . . . Installed . | . . . . Triggered . | . . . . Machines | -11 -10 -9 -9 ---------- Run | Scr Mat Mat Sto Machines Disabled . | . . . . Max in Single Turn . | . . . . Machines Sabotaged . | . . . . Garrisons Compromised . | . . . . Overloaded Fab Kills . | . . . . Fab Network Shutdowns . | . . . . Hacking | -11 -10 -9 -9 --------- Run | Scr Mat Mat Sto Machines Accessed 2 | . . . 2 Terminals 2 | . . . 2 Fabricators . | . . . . Repair Stations . | . . . . Recycling Units . | . . . . Scanalyzers . | . . . . Garrison Access . | . . . . Total Hacks 4 | . . . 4 Successful 2 | . . . 2 Failed 2 | . . . 2 Catastrophic . | . . . . Database Lockouts . | . . . . Manual 14 | . . . 14 Terminals 4 | . . . 4 Fabricators . | . . . . Repair Stations . | . . . . Recycling Units . | . . . . Scanalyzers . | . . . . Garrison Access . | . . . . Terminal Hacks 2 | . . . 2 Record 1 | . . . 1 Level Access Points 1 | . . . 1 Fabricator Hacks . | . . . . Repair Station Hacks . | . . . . Recycling Unit Hacks . | . . . . Scanalyzer . | . . . . Garrison Access Hacks . | . . . . Unauthorized Hacks . | . . . . Terminals . | . . . . Fabricators . | . . . . Repair Stations . | . . . . Recycling Units . | . . . . Scanalyzers . | . . . . Garrison Access . | . . . . Data Cores Recovered . | . . . . Used . | . . . . Hacking Detections 3 | . . . 3 Full Trace Events 1 | . . . 1 Feedback Events . | . . . . Feedback Blocked . | . . . . Robot Schematics Acquired . | . . . . Robots Built . | . . . . Matter . | . . . . Time . | . . . . Total Robot Build Rating . | . . . . Part Schematics Acquired . | . . . . Parts Built . | . . . . Matter . | . . . . Time . | . . . . Total Part Build Rating . | . . . . Parts Repaired . | . . . . Time . | . . . . Parts Recycled . | . . . . Recycled Matter . | . . . . Retrieved Matter . | . . . . Retrieved Components . | . . . . Parts Scanalyzed . | . . . . Part Schematics Acquired . | . . . . Parts Damaged . | . . . . Bothacking | -11 -10 -9 -9 ------------ Run | Scr Mat Mat Sto Used RIF Installer . | . . . . Robots Hacked 1 | . . . 1 Non-combat . | . . . . Combat 1 | . . . 1 Robot Hacks Applied 1 | . . . 1 parse_system 1 | . . . 1 Relay Couplers Released . | . . . . Robots Rewired . | . . . . Allies Hacked . | . . . . Hacks Repelled . | . . . . Allies | -11 -10 -9 -9 -------- Run | Scr Mat Mat Sto Total Allies . | . . . . Largest Group . | . . . . Highest-Rated Group . | . . . . Highest-Rated Ally . | . . . . Total Orders . | . . . . Ally Attacks . | . . . . Total Damage . | . . . . Kills . | . . . . Allies Corrupted . | . . . . Allies Melted . | . . . . Intel | -11 -10 -9 -9 ------- Run | Scr Mat Mat Sto Robot Analysis Total . | . . . . Derelict Logs Recovered . | . . . . Drone Launches . | . . . . Drone Recoveries . | . . . . Exploration | -11 -10 -9 -9 ------------- Run | Scr Mat Mat Sto Turns Passed 418 | 2 100 53 263 Spaces Moved 394 | 2 77 70 245 Core 147 | . 2 . 145 Treads . | . . . . Legs 16 | 2 14 . . Wheels . | . . . . Hover 231 | . 61 70 100 Flight . | . . . . Fastest Speed 50 | 120 56 56 50 Average Speed 69 | 120 77 56 70 Slowest Speed 200 | 120 200 56 200 Overloaded Moves . | . . . . Propulsion Burnouts . | . . . . Robots Hopped . | . . . . Cave-ins Triggered . | . . . . Exploration Rate (%) 21 | 1 20 8 55 Regions Visited 3 Branch Regions 1 Pre-discovered Areas . | . . . . Known Exits Taken . | . . . . Unknown Exits Taken 3 | 1 1 1 . Scrap Searched . | . . . . Spaces Dug . | . . . . Terrain Destroyed . | . . . . Melee . | . . . . Projectile . | . . . . AOE . | . . . . Terrain Rammed . | . . . . Walls Destroyed . | . . . . Machines Disabled . | . . . . Actions | -11 -10 -9 -9 --------- Run | Scr Mat Mat Sto Total 474 | 1 101 82 290 Wait 5 | . . 4 1 Move 391 | 1 76 69 245 Hop . | . . . . Pick Up 8 | . 4 2 2 Fast Attach 5 | . 4 1 . Attach 9 | . . 5 4 Detach . | . . . . Swap 2 | . . 1 1 Drop 9 | . 7 . 2 Fire 27 | . 10 . 17 Melee 17 | . . . 17 Ram 1 | . . . 1 Kick . | . . . . Crush . | . . . . Escape Stasis . | . . . . Rewire . | . . . . Trap . | . . . . Miscellaneous . | . . . . Route ------- -11/Scrapyard -10/Materials -9/Materials (discovered 2 exits: [*Min] / *Sto) -9/Storage (discovered 1 exit: Mat) History --------- Turn | Location | Event 1 | -11/Scrapyard | Discovered new exit (range 1) 3 | -11/Scrapyard | Entered Materials 77 | -10/Materials | Discovered new exit (range 8) 103 | -10/Materials | Entered another Materials area 103 | -9/Materials | Evolved 2 slots: Utility x2 122 | -9/Materials | Discovered new exit (range 15) 124 | -9/Materials | Discovered new exit (range 13) 154 | -9/Materials | Lost 4 parts (1p2n1w) 156 | -9/Materials | Entered Storage 264 | -9/Storage | Garrison activated, responded to threat 276 | -9/Storage | Lost 4 parts (1p2n1w) 310 | -9/Storage | Build established: Mutant 353 | -9/Storage | Core integrity fell below 50% 381 | -9/Storage | Lost 5 parts (1n2u2w) 388 | -9/Storage | Identified exit to Materials 413 | -9/Storage | Core integrity fell below 20% 419 | -9/Storage | Destroyed by G-34 Mercenary with Small Laser Last Messages --------------- 00388_ Connecting with Terminal... >>Access(Main) Found 1 level access point to Materials: (11,71) Map updated. 00391_ Connecting with Terminal... >>Query(Lightweight Power Sources) Many engines, cores, and reactors have an alternative lightweight variant that retains the generation efficiency of its standard version but minimizes built-in battery space to reduce weight for certain robot designs, especially those with strict weight restrictions such as hovering and flight-based models. 00391_ ALERT: Suspicious activity at Terminal S006. Dispatching Investigation squad. 00396_ Slammed into G-34 Mercenary. 00396_ Destabilizing: System interference. 00396_ Visual Processing Unit temporarily disabled. 00396_ Sml. Laser temporarily disabled. 00411_ Sml. Laser destroyed. 00418_ Dropped Hrd. Light Armor Plating. Map ----- +----------------------------------------------------+ | ????????????????????????????#+##+### #?????# | | ????????????????????????????# #?????# | | ????????????????????????????# ##+##### #?????# | | #########???????????????????# # [#??# #?????# | | #???????????????????# + #??#+#?????# | | #???????????######??# # ! #??????????# | | [[ ]=#???????????# #### # #??????????# | | #???????????# + # #??????????# | | ! ! #???????????# # ##+#### #??????????+ | | #???????????# # # ## %#??????????? | | #???????????# + + ######??????????? | | ####+################ # # #???????????????? | | # % # # # #???????????????? | | # != # # # #???????????????? | | # ! # #u# #???????????????? | | # ! ######k# #????????????????? | | "" # % % #????# # #????????????????? | | G" # % #????# # #????????????????? | | "" #+######+##+######## ##########????????????? | | ^ #????????????? | | % #????????????? | | ######## """ """ """ """ """ #????????????? | | # """ """ """ """ """ #????????????? | | "??" # """ """ """ """ """ #????????????? | | ""??" + g g +????????????? | | ""???" # g g g !@ #????????????? | | "???"" ## ### ga #????????????? | | "??"" ## #?#g ############# ###????????????? | | """" ## #?#^ """ T#??????????? #??????????????? | | ## #?# "R ##????????????#??????????????? | | ## #?# """ #????????????????????????????? | | #########+### #????????????????????????????? | | ???# # #????????????????????????????? | | ???# """" + #????????????????????????????? | | ???# "??"" # #????????????????????????????? | | ???# "???"" + +????????????????????????????? | | ???# ""???" #####+#+#????????????????????????????? | | ???# ""??" ## [ #????????????????????????????? | | ???# """" ## #????????????????????????????? | | ???# ## """ #????????????????????????????? | | ???# ## """ ###??????????????????????????? | | ???########### """ ""#??????????????????????????? | | ???????????#"" ""#??????????????????????????? | | ???????????#"T """ T"#??????????????????????????? | | ???????????#"" """ ""#??????????????????????????? | | ???????????### """ ###??????????????????????????? | | ?????????????# #????????????????????????????? | | ?????????????##"T"# #????????????????????????????? | | ??????????????#"""###????????????????????????????? | | ??????????????#####??????????????????????????????? | +----------------------------------------------------+ Best States ------------- Heat Dissipation 28 Energy Generation 10 Energy Capacity 250 Matter Stores 300 Matter Capacity 300 Sight Range 18 Robot Scan Range 13 Terrain Scan Density 10 ECM Strength 1 Evasion (%) 53 Item Schematics ----------------- None Robot Schematics ------------------ None Fabricated ------------ Nothing Alien Tech Used ----------------- None Achievements -------------- None Challenges ------------ None Game ------ Seed AssembledPoweredMatter Manual? 0 Play Time 00:17:24 Cumulative 90.1 hours Start 2020.12.30 @ 18:48:12 End 2020.12.30 @ 19:02:13 Sessions 1 Manual Loads 0 Difficulty Rogue Special Mode None Game No. 65 Rogue 65 Adventurer 0 Explorer 0 Win Type - Total 2 Types 2/0/0/0/0/0/0/0/0 Lore% 35 Gallery% 52 Achievement% 28 Wizard Run 0 Options --------- ASCII 0 Keyboard 0 Movement Mouse Keybinds 0 Fullscreen 1 Font 18/SmallcapsGlow Map View 76x50 Tactical HUD 1 Map Filters NONE Filters NONE Steam 1 RUN: 920369b9-e290-44b2-b9f1-f6591f34012f